bitfinex/quotes_ETHUSD_20220219
["timestamp","ask_amount","ask_price","bid_price","bid_amount"]
[1645277483404,3.6725535,2724.7,2724.0,0.23505697]
[1645277483606,1.91821,2724.6,2724.0,0.23505697]
[1645277484605,0.91821,2724.5,2724.0,0.23505697]
[1645277485507,1.91821,2724.6,2724.1,4.61411112]
[1645277485746,0.1834,2724.8,2724.0,0.23505697]
[1645277485947,0.91801,2724.9,2724.5,4.61411112]
[1645277486149,0.1834,2725.2,2724.5,4.61411112]
[1645277486644,0.1834,2725.2,2724.0,0.23505697]
[1645277486645,1.8360281,2725.1,2724.0,0.23505697]
[1645277486843,0.91802,2724.9,2724.1,1.55936627]
[1645277487043,0.91802,2724.9,2724.1,1.55785025]
[1645277487256,0.91802,2724.9,2724.1,6.17642359]
[1645277487447,0.91802,2724.9,2724.1,0.00446222]
[1645277487646,0.91802,2724.9,2724.5,4.61411112]
[1645277487851,1.83602,2725.1,2724.5,4.61411112]
[1645277488250,1.83602,2725.1,2724.4,4.61411112]
[1645277488447,1.83602,2725.1,2724.1,0.00446222]
[1645277489047,0.91795,2725.0,2724.1,0.00446222]
[1645277489512,1.91795,2725.0,2724.1,4.61411112]
[1645277489697,0.91795,2725.0,2724.1,4.61857334]
[1645277489897,1.91795,2725.0,2724.1,4.61857334]
[1645277490098,0.91795,2725.0,2724.1,4.61857334]
[1645277490300,1.91795,2725.0,2724.1,0.00446222]
[1645277490504,0.91808,2724.9,2724.0,0.23505697]
[1645277490701,0.91807,2724.7,2724.0,0.23505697]
[1645277490901,0.91807,2724.7,2724.0,0.23947565]
[1645277491704,0.91807,2724.7,2724.0,0.23505697]
[1645277492904,1.83621,2724.7,2724.0,0.23505697]
[1645277493740,0.9181967,2724.6,2724.0,0.23505697]
[1645277493940,1.83642,2724.5,2724.0,0.23505697]
[1645277494343,1.91821,2724.5,2724.0,0.23505697]
[1645277494542,0.91821,2724.5,2724.0,0.23505697]
[1645277494743,2.11179767,2725.1,2724.4,4.61411112]
[1645277494946,1.1834,2725.1,2724.4,4.61411112]
[1645277495244,0.91797,2725.1,2724.4,4.61411112]
[1645277495649,0.91797,2725.1,2724.1,0.00442842]
[1645277496543,0.91797,2725.1,2724.0,8.00406809]
[1645277496743,1.91797,2725.1,2724.1,3.50442842]
[1645277497006,1.91797,2725.1,2724.3,4.61411112]
[1645277497194,0.91797,2725.1,2724.1,3.50442842]
[1645277497395,1.91797,2725.1,2724.5,4.61411112]
[1645277497610,0.91797,2725.1,2724.5,4.61411112]
[1645277497797,0.9180792,2725.0,2724.1,1.1303]
[1645277497997,0.9180792,2725.0,2724.1,0.00442621]
[1645277497998,0.9182,2724.9,2724.1,0.00442621]
[1645277498398,0.91818,2724.7,2724.1,0.00442621]
[1645277498797,0.91818,2724.7,2724.1,4.61853733]
[1645277498999,0.91818,2724.7,2724.1,4.61411112]
[1645277499198,0.91818,2724.7,2724.0,0.23505697]
[1645277499401,0.9182,2724.6,2724.2,4.61411112]
[1645277499997,0.9182,2724.6,2724.0,0.23505697]
[1645277500601,2.83638,2724.6,2724.0,0.23505697]
[1645277501543,3.75458,2724.6,2724.0,0.23505697]
[1645277502343,14.96458,2724.6,2724.0,0.23505697]
[1645277502544,15.14798,2724.6,2724.0,0.23505697]
[1645277503352,3.93798,2724.6,2724.0,0.23505697]
[1645277503749,3.01978,2724.6,2724.0,0.23505697]
[1645277503950,2.1016,2724.6,2724.0,0.23505697]
[1645277504151,1.1016,2724.6,2724.0,0.23505697]
[1645277504596,0.1834,2724.6,2724.0,0.23505697]
[1645277504793,0.1834,2724.8,2724.0,0.23505697]
[1645277505395,0.1834,2724.8,2724.1,4.61411112]
[1645277505796,0.1834,2724.8,2724.0,0.23505697]
[1645277505998,0.91813,2724.7,2724.0,0.23505697]
[1645277506996,0.91813,2724.7,2724.1,1.55944303]
[1645277507801,14.22972,2724.9,2724.5,4.61411112]
[1645277507802,0.1834,2724.9,2724.5,4.61411112]
[1645277508001,0.94863318,2725.4,2724.5,4.61411112]
[1645277508002,2.11739767,2725.2,2724.6,1.55944303]
[1645277508252,1.11179767,2725.3,2724.6,1.55944303]
[1645277508452,1.11933864,2725.3,2724.6,1.55944303]
[1645277508657,1.11933864,2725.3,2724.6,1.55859195]
[1645277509054,0.92839767,2725.2,2724.6,1.55859195]
[1645277509353,0.91793,2725.1,2724.6,1.55859195]
[1645277510159,0.91793,2725.1,2724.7,4.61411112]
[1645277510555,0.91793,2725.1,2724.1,4.65392662]
[1645277510756,0.91793,2725.1,2724.3,4.61411112]
[1645277510954,0.91793,2725.1,2724.1,4.6495]
[1645277511262,0.91793,2725.1,2724.7,4.61411112]
[1645277511856,0.19094097,2725.3,2724.6,0.7560804]
[1645277511857,1.11933864,2725.3,2724.6,0.7560804]
[1645277512101,0.19094097,2725.3,2724.6,0.7560804]
[1645277512304,0.19094097,2725.3,2724.6,5.37019152]
[1645277513298,2.10880097,2725.3,2724.6,0.7560804]
[1645277513599,1.10880097,2725.3,2724.6,0.7560804]
[1645277513806,0.92540097,2725.3,2724.6,0.7560804]
[1645277514400,0.92540097,2725.3,2724.6,5.37019152]
[1645277514599,0.92540097,2725.3,2724.2,11.2024]
[1645277514600,1.85379864,2725.3,2724.2,11.2024]
[1645277514802,1.85379864,2725.3,2724.1,5.69583444]
[1645277514803,1.93593864,2725.3,2724.3,4.61411112]
[1645277515003,0.91795,2725.0,2724.3,4.61411112]
[1645277515402,3.02974767,2725.0,2724.3,4.61411112]
[1645277515749,0.9181433,2724.8,2724.1,0.00442662]
[1645277515944,1.1015433,2724.8,2724.0,0.23505697]
[1645277516149,2.0196933,2724.8,2724.1,0.00442662]
[1645277516348,0.91817,2724.7,2724.1,0.00442662]
[1645277517044,0.91817,2724.7,2724.0,0.23505697]
[1645277517944,0.91818,2724.6,2724.0,0.23505697]
[1645277518147,0.91817,2724.7,2724.0,0.23505697]
[1645277518148,0.91816,2724.5,2724.0,0.23505697]
[1645277518444,1.1834,2724.8,2724.0,0.23505697]
[1645277518848,0.1834,2724.8,2724.0,4.84916809]
[1645277519246,1.83618,2724.7,2724.0,4.84916809]
[1645277519503,1.83618,2724.7,2724.0,0.23505697]
[1645277522496,2.83618,2724.7,2724.0,0.23505697]
[1645277522693,0.79783784,2724.6,2724.0,0.23505697]
[1645277522897,0.91825,2724.5,2724.0,0.23505697]
[1645277523094,0.60655028,2724.4,2724.0,0.23505697]
[1645277523343,0.92839767,2724.2,2724.0,0.23505697]
[1645277523542,0.38214854,2724.3,2724.0,0.23505697]
[1645277523750,1.86189125,2724.8,2724.2,4.62663235]
[1645277523950,1.39932752,2724.7,2724.3,4.03]
[1645277524151,0.00754097,2725.3,2724.6,4.61411112]
[1645277524342,1.39932752,2725.4,2725.2,4.61411112]
[1645277524544,0.00754097,2725.3,2725.2,4.61411112]
[1645277524848,4.42367792,2725.6,2725.2,5.14411112]
[1645277524849,0.00754097,2725.6,2725.2,5.14411112]
[1645277525046,1.39658508,2726.3,2725.6,9.0]
[1645277525247,4.38843337,2726.5,2725.7,0.53]
[1645277525443,8.9434,2726.7,2725.7,0.53]
[1645277525444,1.39653541,2726.4,2725.7,0.53]
[1645277525643,2.36209925,2726.7,2725.7,0.53]
[1645277525644,1.89653541,2726.7,2726.3,4.61411112]
[1645277525846,0.5,2726.7,2726.3,4.61411112]
[1645277526047,0.5,2726.7,2726.4,0.53]
[1645277526242,0.5,2726.7,2726.6,4.61411112]
[1645277526442,0.5,2726.7,2726.6,5.14411112]
[1645277526844,8.88653541,2727.1,2726.6,5.14411112]
[1645277527114,8.88653541,2727.1,2727.0,4.61411112]
[1645277527303,7.49,2727.1,2727.0,4.61411112]
[1645277527500,7.49,2727.1,2727.0,5.14411112]
[1645277530838,7.49,2727.1,2727.0,0.53]
[1645277531240,7.49,2727.1,2726.5,4.61411112]
[1645277531440,7.49,2727.1,2726.5,5.14411112]
[1645277531641,0.04035807,2727.0,2726.5,5.14411112]
[1645277531843,0.04035807,2727.0,2726.5,4.61411112]
[1645277532050,0.00331987,2726.9,2726.5,4.61411112]
[1645277532243,0.00331987,2726.9,2726.3,0.2508]
[1645277532847,0.1832,2726.8,2726.3,0.2508]
[1645277533043,3.6832,2726.8,2726.3,0.2508]
[1645277533443,0.0033199,2726.7,2726.3,0.2508]
[1645277533641,0.1832,2726.6,2726.3,0.2508]
[1645277533842,0.0033199,2726.7,2726.3,4.86491112]
[1645277534040,0.0033199,2726.7,2726.3,0.2508]
[1645277534242,2.10054,2726.9,2726.3,0.2508]
[1645277534493,0.00310769,2726.6,2726.3,0.2508]
[1645277534689,0.00310769,2726.6,2726.3,4.86491112]
[1645277535089,0.00310769,2726.6,2726.3,0.2508]
[1645277535290,0.00310769,2726.6,2726.5,4.61411112]
[1645277535491,0.22355807,2727.0,2726.5,4.61411112]
[1645277535689,0.0031077,2726.6,2726.3,0.2508]
[1645277536690,0.91736,2726.8,2726.3,0.2508]
[1645277536897,0.0031077,2726.6,2726.3,0.2508]
[1645277537197,0.8704677,2726.8,2726.3,0.2508]
[1645277538649,0.8704677,2726.8,2725.7,0.80289002]
[1645277538850,4.64086807,2727.0,2726.0,4.61411112]
[1645277539049,1.14086807,2727.0,2726.0,4.61411112]
[1645277539253,1.14086807,2727.0,2726.2,4.61411112]
[1645277539450,0.04035807,2727.0,2725.7,0.80289002]
[1645277539756,0.04035807,2727.0,2726.2,4.61411112]
[1645277540350,0.04035807,2727.0,2726.9,4.61411112]
[1645277540550,0.04035807,2727.0,2725.8,0.9172]
[1645277541352,0.04035807,2727.0,2726.3,4.61411112]
[1645277541754,0.0033683,2726.7,2726.3,4.61411112]
[1645277542605,4.5,2726.9,2726.3,4.61411112]
[1645277543006,0.0033684,2726.7,2726.3,4.61411112]
[1645277543805,1.0,2726.9,2726.3,4.61411112]
[1645277544206,0.0033684,2726.7,2726.3,4.61411112]
[1645277545010,1.0,2726.9,2726.3,4.61411112]
[1645277545405,0.0033684,2726.7,2726.3,4.61411112]
[1645277546242,1.1832,2726.9,2725.8,0.9172189]
[1645277546443,0.00336495,2726.7,2726.5,4.61411112]
[1645277546842,0.00223728,2726.7,2726.5,4.61411112]
[1645277547240,0.00223728,2726.7,2725.8,1.8343889]
[1645277547444,0.1832,2726.9,2726.5,4.61411112]
[1645277548342,7.53035807,2727.0,2726.5,4.61411112]
[1645277549048,7.53035807,2727.0,2725.8,1.8343889]
[1645277549497,7.53035807,2727.0,2726.8,4.61411112]
[1645277550191,7.53372308,2727.0,2726.0,1.1844]
[1645277550395,7.53372308,2727.0,2726.5,4.61411112]
[1645277550898,7.53372308,2727.0,2726.0,1.1844]
[1645277551092,7.53035807,2727.0,2726.3,4.61411112]
[1645277551292,0.00336503,2726.9,2726.3,4.61411112]
[1645277551692,0.00336503,2726.9,2726.0,1.1844]
[1645277551892,0.00336503,2726.9,2726.7,4.61411112]
[1645277552293,7.53035807,2727.0,2726.3,4.61411112]
[1645277552492,0.00336503,2726.9,2726.3,4.61411112]
[1645277553093,0.00336503,2726.9,2726.7,4.61411112]
[1645277553539,7.53035807,2727.0,2726.3,4.61411112]
[1645277553742,0.00336503,2726.9,2726.3,4.61411112]
[1645277554740,7.53035807,2727.0,2726.3,4.61411112]
[1645277554942,0.00336497,2726.8,2726.0,1.1844]
[1645277555141,0.00336497,2726.8,2726.3,4.61411112]
[1645277555941,0.04035807,2727.0,2726.3,4.61411112]
[1645277556342,2.77839688,2727.2,2726.3,4.61411112]
[1645277556543,2.77839688,2727.2,2726.5,4.61411112]
[1645277556544,1.91731,2727.2,2726.5,4.61411112]
[1645277556746,2.10051,2727.2,2726.1,3.5]
[1645277557009,2.10051,2727.2,2726.8,4.61411112]
[1645277557412,0.9173,2727.0,2726.5,4.61411112]
[1645277557605,0.9173,2727.0,2726.3,4.61411112]
[1645277557606,1.83468,2727.0,2726.3,4.61411112]
[1645277557808,0.9173,2727.0,2726.3,4.61411112]
[1645277558606,0.00329278,2726.9,2726.3,4.61411112]
[1645277559307,0.00329278,2726.9,2726.7,4.61411112]
[1645277559506,0.9173,2727.0,2726.7,4.61411112]
[1645277559907,0.00329273,2726.9,2726.7,4.61411112]
[1645277560762,0.9173,2727.0,2726.7,4.61411112]
[1645277560946,0.00329294,2726.9,2726.7,4.61411112]
[1645277561746,0.00329294,2726.9,2726.4,4.61411112]
[1645277561948,0.9173,2727.0,2726.4,4.61411112]
[1645277562148,0.003288,2726.9,2726.4,4.61411112]
[1645277563048,0.9173,2727.0,2726.4,4.61411112]
[1645277563257,0.9173,2727.0,2726.8,4.61411112]
[1645277563450,0.00328783,2726.9,2726.8,4.61411112]
[1645277563649,0.00328783,2726.9,2726.6,4.61411112]
[1645277564251,0.9173,2727.0,2726.6,4.61411112]
[1645277564493,0.1832,2727.2,2726.9,4.61411112]
[1645277564694,0.62195081,2727.3,2726.1,3.5]
[1645277564889,0.62195081,2727.3,2726.2,1.55818213]
[1645277565090,0.62195081,2727.3,2726.8,4.61411112]
[1645277565295,0.62195081,2727.3,2726.3,3.5]
[1645277565492,0.62195081,2727.3,2726.4,1.5581838]
[1645277565691,2.01848622,2727.3,2726.5,4.61411112]
[1645277565895,0.00328908,2727.2,2726.5,4.61411112]
[1645277566093,0.91727,2727.0,2726.5,4.61411112]
[1645277567092,0.00328906,2726.9,2726.5,4.61411112]
[1645277567693,0.00328906,2726.9,2726.0,1.1844]
[1645277567694,0.00328906,2726.9,2726.7,4.61411112]
[1645277567893,1.39653541,2727.1,2726.0,1.1844]
[1645277567894,2.57973541,2727.2,2726.0,1.1844]
[1645277568092,2.57973541,2727.2,2726.1,1.55833222]
[1645277568093,1.39653541,2727.1,2726.1,1.55833222]
[1645277568349,1.0,2727.2,2726.1,1.55833222]
[1645277568350,0.003289,2726.9,2726.1,1.55833222]
[1645277569045,0.003289,2726.9,2726.1,3.5]
[1645277569345,0.00328853,2726.9,2726.1,3.5]
[1645277569743,0.00328853,2726.9,2726.0,1.1844]
[1645277569945,0.00328853,2726.9,2726.8,4.61411112]
[1645277570344,2.01848622,2727.3,2726.8,4.61411112]
[1645277570745,0.00328885,2727.0,2726.8,4.61411112]
[1645277571543,1.39653541,2727.1,2726.8,4.61411112]
[1645277571744,0.00328885,2727.0,2726.8,4.61411112]
[1645277572789,1.39653541,2727.2,2726.8,4.61411112]
[1645277573097,1.53917081,2727.3,2726.8,4.61411112]
[1645277573098,0.0032889,2727.0,2726.8,4.61411112]
[1645277573891,2.93570622,2727.3,2726.8,4.61411112]
[1645277574392,0.0032889,2727.0,2726.8,4.61411112]
[1645277574591,0.9205789,2727.0,2726.8,4.61411112]
[1645277575194,0.91729,2727.0,2726.8,4.61411112]
[1645277575392,0.9205789,2727.0,2726.8,4.61411112]
[1645277576345,0.91729,2727.0,2726.8,4.61411112]
[1645277576737,0.92057889,2727.0,2726.8,4.61411112]
[1645277577540,0.91729,2727.0,2726.8,4.61411112]
[1645277577740,0.92057889,2727.0,2726.8,4.61411112]
[1645277578540,0.00328889,2727.0,2726.8,4.61411112]
[1645277578738,1.53794101,2727.3,2726.8,4.61411112]
[1645277578946,0.00328889,2727.0,2726.8,4.61411112]
[1645277579988,1.53794101,2727.3,2727.0,0.057]
[1645277580391,0.91722,2727.2,2727.0,0.057]
[1645277580991,0.91722,2727.2,2727.0,4.67111112]
[1645277581391,0.92050887,2727.2,2727.0,4.67111112]
[1645277582391,0.92050887,2727.2,2727.0,0.057]
[1645277582392,0.91722,2727.2,2727.0,0.057]
[1645277582592,0.92050887,2727.2,2727.0,0.057]
[1645277583447,0.00328887,2727.2,2727.1,4.61411112]
[1645277584746,0.62195081,2727.3,2727.1,4.61411112]
[1645277584948,0.62523967,2727.3,2727.1,4.61411112]
[1645277585947,0.62195081,2727.3,2727.1,4.61411112]
[1645277586146,0.52195081,2727.3,2727.1,4.61411112]
[1645277586345,0.52523967,2727.3,2727.1,4.61411112]
[1645277586550,0.00328886,2727.3,2727.1,4.61411112]
[1645277587506,7.49,2727.5,2727.1,4.61411112]
[1645277587704,0.00328886,2727.3,2727.1,4.61411112]
[1645277588406,0.00750327,2727.7,2727.1,4.61411112]
[1645277588608,0.00302836,2727.3,2727.1,4.61411112]
[1645277589415,0.00302836,2727.3,2727.2,1.55777689]
[1645277589605,0.00750327,2727.9,2727.2,1.55777689]
[1645277589805,0.00302836,2727.3,2727.2,1.55777689]
[1645277590405,0.00302836,2727.3,2727.2,5.05777689]
[1645277590847,0.00750327,2727.9,2727.2,5.05777689]
[1645277591045,0.00302835,2727.4,2727.2,3.5]
[1645277591644,0.00302835,2727.4,2727.3,4.61411112]
[1645277591953,0.00750327,2727.9,2727.3,10.20184145]
[1645277592246,0.00750327,2728.1,2727.8,4.61411112]
[1645277592448,7.99,2728.2,2728.0,4.61411112]
[1645277592654,0.00750327,2728.1,2728.0,4.61411112]
[1645277592846,0.01990802,2728.4,2728.0,4.61411112]
[1645277593048,0.01240475,2728.4,2727.5,2.8437]
[1645277593248,1.39653541,2728.3,2727.5,2.8437]
[1645277593447,0.00750327,2728.2,2727.5,2.8437]
[1645277593847,0.92446327,2728.2,2727.5,2.8437]
[1645277594048,0.91691,2728.1,2727.5,2.8437]
[1645277594889,0.00310212,2727.9,2727.5,2.8437]
[1645277595089,0.92008212,2727.9,2727.5,2.8437]
[1645277595690,0.91698,2727.9,2727.5,2.8437]
[1645277595890,0.00323122,2727.8,2727.3,4.61411112]
[1645277596493,0.00323122,2727.8,2727.2,0.057]
[1645277596494,3.50323122,2727.8,2727.2,0.057]
[1645277596692,3.51073449,2727.8,2727.2,0.057]
[1645277596997,1.91707,2727.7,2727.2,0.057]
[1645277597194,3.50323125,2727.6,2727.2,0.057]
[1645277597393,0.53,2727.5,2727.2,0.057]
[1645277597594,1.44725,2727.5,2727.2,0.057]
[1645277597793,2.44725,2727.5,2727.2,0.057]
[1645277597992,3.06168784,2727.5,2727.2,0.057]
[1645277598253,0.1832,2727.4,2727.2,0.057]
[1645277599244,0.1832,2727.4,2727.2,0.051216]
[1645277599650,1.11901075,2727.4,2727.2,0.051216]
[1645277599844,2.03623075,2727.4,2727.2,0.051216]
[1645277601246,1.11901075,2727.4,2727.2,0.051216]
[1645277601849,0.93581075,2727.4,2727.2,0.051216]
[1645277603695,1.43581075,2727.4,2727.2,0.051216]
[1645277603897,0.93581075,2727.4,2727.2,0.051216]
[1645277604994,1.11901075,2727.4,2727.2,0.051216]
[1645277606046,1.85303075,2727.4,2727.2,0.051216]
[1645277606248,0.61443784,2727.3,2727.2,0.051216]
[1645277606449,0.79763784,2727.3,2727.2,0.051216]
[1645277606644,3.56623075,2727.4,2727.2,0.051216]
[1645277606845,3.56319875,2727.4,2727.2,0.051216]
[1645277610107,3.56319875,2727.4,2727.3,4.61411112]
[1645277610108,0.1832,2727.4,2727.3,4.61411112]
[1645277610302,0.00750327,2727.8,2727.3,4.61411112]
[1645277610508,8.88653541,2728.0,2727.7,4.61411112]
[1645277610509,7.49,2728.0,2727.7,4.61411112]
[1645277610803,1.85088332,2728.4,2727.9,4.61411112]
[1645277610804,1.39653541,2728.4,2727.9,4.61411112]
[1645277611204,1.40403868,2728.5,2728.1,4.61411112]
[1645277611403,0.00750327,2728.3,2728.1,4.61411112]
[1645277611602,2.31334541,2728.5,2727.5,0.7734528]
[1645277611802,0.00750327,2728.4,2727.9,4.61411112]
[1645277612405,0.00750327,2728.4,2727.2,0.051216]
[1645277612609,0.91686,2728.3,2727.6,4.61411112]
[1645277612804,0.00750327,2728.2,2727.6,4.61411112]
[1645277613004,0.00750327,2728.2,2727.6,4.46411112]
[1645277615659,0.00750327,2728.2,2727.3,6.3953]
[1645277615860,0.00750327,2728.4,2728.1,4.46411112]
[1645277616061,8.89403868,2728.6,2728.1,4.46411112]
[1645277616262,8.89403868,2728.6,2727.3,6.3953]
[1645277616263,7.49750327,2728.6,2728.5,4.46411112]
[1645277616462,7.49,2728.6,2728.3,4.46411112]
[1645277616661,0.00336304,2728.4,2728.3,4.46411112]
[1645277617299,0.00336304,2728.4,2727.7,3.5]
[1645277617300,0.00336304,2728.4,2728.1,4.46411112]
[1645277617493,0.00750327,2728.8,2728.1,4.46411112]
[1645277617901,0.00336302,2728.5,2728.1,4.46411112]
[1645277618794,0.92418327,2728.8,2728.3,4.46411112]
[1645277618994,0.00336303,2728.4,2728.1,4.46411112]
[1645277619193,0.00336303,2728.4,2728.2,4.46411112]
[1645277619997,0.00750327,2728.8,2728.2,4.46411112]
[1645277620294,0.00750327,2728.8,2728.1,0.6755181]
[1645277620295,0.00336303,2728.4,2728.1,0.6755181]
[1645277620498,0.00336303,2728.4,2728.3,4.46411112]
[1645277621148,0.00750327,2728.8,2728.3,4.46411112]
[1645277621349,0.00336302,2728.5,2728.3,4.46411112]
[1645277622350,0.00750327,2728.8,2728.3,4.46411112]
[1645277622649,0.00336302,2728.5,2728.3,4.46411112]
[1645277623449,0.50750327,2729.0,2728.3,4.46411112]
[1645277623751,0.00336302,2728.5,2728.3,4.46411112]
[1645277624694,0.92411327,2728.9,2728.3,4.46411112]
[1645277625095,0.00326951,2728.5,2728.3,4.46411112]
[1645277625895,0.00750327,2728.9,2728.3,4.46411112]
[1645277626095,0.5,2729.0,2728.0,0.66252925]
[1645277626298,0.00326951,2728.5,2728.4,4.46411112]
[1645277627100,0.00750327,2728.9,2728.4,4.46411112]
[1645277627497,0.0032695,2728.6,2728.4,4.46411112]
[1645277628351,0.00750327,2728.9,2728.4,4.46411112]
[1645277628646,0.5,2729.0,2728.4,4.46411112]
[1645277628647,0.00326949,2728.6,2728.4,4.46411112]
[1645277629245,0.91664,2728.9,2728.4,4.46411112]
[1645277630951,0.00294741,2728.8,2728.4,4.46411112]
[1645277631548,0.00294741,2728.8,2728.0,0.66252925]
[1645277631748,0.01041703,2728.8,2728.7,4.46411112]
[1645277631993,0.5,2729.0,2728.7,4.46411112]
[1645277632194,0.5,2729.0,2728.9,4.46411112]
[1645277634493,0.5,2729.0,2728.9,5.23617411]
[1645277635293,0.5,2729.0,2728.9,8.73617411]
[1645277635494,0.5,2729.0,2728.9,5.23617411]
[1645277636149,0.5,2729.0,2728.9,9.26617411]
[1645277636346,0.5,2729.0,2728.9,5.76617411]
[1645277637145,0.00294549,2729.1,2728.9,5.76617411]
[1645277637346,0.00294549,2729.1,2728.9,6.68227861]
[1645277637646,4.549e-05,2729.1,2728.9,6.68227861]
[1645277637845,0.01855288,2729.6,2728.9,6.68227861]
[1645277638047,0.01855288,2729.6,2729.1,0.91604]
[1645277638246,0.01108326,2729.6,2729.5,4.46411112]
[1645277638452,0.00746962,2730.1,2729.6,9.0]
[1645277638652,7.49,2730.2,2730.0,4.46411112]
[1645277638950,0.00746962,2730.1,2730.0,4.46411112]
[1645277639151,15.75,2731.2,2730.1,9.0]
[1645277639152,16.21783865,2731.2,2730.1,9.0]
[1645277639348,1.39653541,2731.0,2730.5,4.46411112]
[1645277639604,15.75,2731.2,2730.5,4.46411112]
[1645277639605,0.01179047,2730.6,2730.5,4.46411112]
[1645277640405,0.0078,2730.9,2730.5,3.25717739]
[1645277640605,0.00294806,2730.7,2730.2,2.9074]
[1645277640806,0.00294806,2730.7,2730.6,3.25717739]
[1645277641705,0.0078,2730.9,2730.6,3.25717739]
[1645277641906,0.00336958,2730.8,2730.6,3.25717739]
[1645277642706,0.0078,2730.9,2730.4,3.25717739]
[1645277642904,0.0078,2731.1,2730.4,3.25717739]
[1645277643106,0.00336957,2730.8,2730.4,3.25717739]
[1645277643751,0.18646957,2730.8,2730.4,3.25717739]
[1645277643945,0.1831,2730.8,2730.4,3.25717739]
[1645277644145,1.92372,2730.9,2730.4,3.25717739]
[1645277644549,0.00336958,2730.7,2730.4,3.25717739]
[1645277645146,0.0078,2730.9,2730.4,3.25717739]
[1645277645345,0.0078,2730.9,2730.2,4.0941]
[1645277645548,0.0078,2730.9,2730.7,3.25717739]
[1645277645746,0.0078,2730.9,2730.2,4.0941]
[1645277645747,0.92372,2730.9,2730.3,3.25717739]
[1645277646348,0.5,2730.6,2730.3,3.25717739]
[1645277647806,0.49361323,2730.6,2730.3,3.25717739]
[1645277648707,2.32577323,2730.6,2730.3,3.25717739]
[1645277648914,2.32240362,2730.6,2730.3,3.25717739]
[1645277649107,2.32577323,2730.6,2730.3,3.25717739]
[1645277650110,2.32240362,2730.6,2730.3,3.25717739]
[1645277650312,2.32577323,2730.6,2730.3,3.25717739]
[1645277651141,2.32240362,2730.6,2730.3,3.25717739]
[1645277651647,2.32577323,2730.6,2730.3,3.25717739]
[1645277652343,2.32240362,2730.6,2730.3,3.25717739]
[1645277652544,0.49318804,2730.6,2730.3,3.25717739]
[1645277653145,0.49318804,2730.6,2730.5,3.25717739]
[1645277653347,0.49318804,2730.6,2730.0,0.13819997]
[1645277653544,0.91596,2730.7,2730.0,0.13819997]
[1645277653750,0.0078,2730.9,2730.3,3.25717739]
[1645277653947,0.00337123,2730.7,2730.3,3.25717739]
[1645277654798,0.0078,2730.9,2730.3,3.25717739]
[1645277655097,0.0078,2730.9,2730.0,0.13819997]
[1645277655297,0.00330889,2730.6,2730.3,3.25717739]
[1645277655800,0.00330889,2730.6,2730.0,0.13819997]
[1645277655999,0.0078,2730.9,2730.5,3.25717739]
[1645277656199,0.0078,2730.9,2730.0,0.13819997]
[1645277656401,0.0078,2730.9,2730.0,0.66819997]
[1645277656599,0.01323362,2731.0,2730.8,3.25717739]
[1645277656802,0.0078,2730.9,2730.8,3.25717739]
[1645277657003,0.0078,2730.9,2730.2,4.2128]
[1645277657197,0.0078,2730.9,2730.6,3.25717739]
[1645277657397,0.92356,2731.3,2730.6,3.25717739]
[1645277657598,0.00330885,2731.0,2730.6,3.25717739]
[1645277657798,0.0078,2730.9,2730.6,3.25717739]
[1645277658658,0.01110886,2730.9,2730.6,3.25717739]
[1645277659258,0.00330886,2730.9,2730.6,3.25717739]
[1645277659661,0.91583,2731.0,2730.5,0.01555251]
[1645277659862,0.91583,2731.0,2730.9,3.25717739]
[1645277660060,0.00904012,2731.1,2730.9,3.25717739]
[1645277660459,0.00904012,2731.1,2730.6,3.25717739]
[1645277660663,0.0069,2731.1,2730.6,3.25717739]
[1645277661063,0.9159175,2731.2,2730.6,3.25717739]
[1645277661263,0.00328882,2731.0,2730.6,3.25717739]
[1645277661461,1.83518882,2731.0,2730.6,3.25717739]
[1645277662133,1.8319,2731.0,2730.6,3.25717739]
[1645277662300,0.00328882,2730.9,2730.6,3.25717739]
[1645277662497,0.91914882,2730.9,2730.6,3.25717739]
[1645277663298,0.91586,2730.9,2730.6,3.25717739]
[1645277663498,0.91915334,2730.9,2730.6,3.25717739]
[1645277663996,0.00329334,2730.9,2730.6,3.25717739]
[1645277664397,0.91578,2731.1,2730.6,3.25717739]
[1645277664597,0.00329334,2730.9,2730.6,3.25717739]
[1645277664801,0.00329334,2730.9,2730.5,0.08107178]
[1645277665400,0.00329334,2730.9,2730.6,3.25717739]
[1645277665597,1.0,2731.2,2730.6,3.25717739]
[1645277665852,0.00329334,2730.8,2730.5,0.08107178]
[1645277666253,0.00329334,2730.8,2730.7,3.25717739]
[1645277666452,0.00329334,2730.8,2730.7,6.75717739]
[1645277666652,0.00329334,2730.8,2730.7,3.25717739]
[1645277666850,7.49,2731.3,2730.7,3.25717739]
[1645277667455,7.49,2731.3,2731.1,3.25717739]
[1645277668251,7.4929432,2731.3,2731.1,3.25717739]
[1645277669153,7.49,2731.3,2731.1,3.25717739]
[1645277669349,7.49294394,2731.3,2731.1,3.25717739]
[1645277670102,7.34294394,2731.3,2731.1,3.25717739]
[1645277670303,7.34,2731.3,2731.1,3.25717739]
[1645277670703,7.34337369,2731.3,2731.1,3.25717739]
[1645277671701,7.34,2731.3,2731.1,3.25717739]
[1645277672004,7.34,2731.3,2731.1,6.75717739]
[1645277672005,0.00337369,2731.3,2731.1,6.75717739]
[1645277672207,0.00337369,2731.3,2731.2,3.5]
[1645277672405,0.00337369,2731.3,2731.2,4.03]
[1645277673001,3.16870297,2732.2,2731.9,0.70908465]
[1645277673261,0.00337368,2731.4,2731.3,1.4322]
[1645277673452,0.00337368,2731.4,2731.3,4.68937739]
[1645277673649,0.00337368,2731.4,2731.3,8.00647739]
[1645277673850,0.00337368,2731.4,2731.3,4.50647739]
[1645277674050,0.9154,2732.2,2731.3,8.00647739]
[1645277674252,0.9154,2732.2,2732.0,0.66661905]
[1645277674453,0.9154,2732.2,2732.1,3.25717739]
[1645277674854,0.9154,2732.2,2731.4,0.53]
[1645277674855,8.26,2732.4,2731.4,0.53]
[1645277675052,8.26,2732.4,2731.7,2.3047869]
[1645277675256,1.83089,2732.3,2731.4,0.53]
[1645277675453,1.83089,2732.3,2732.0,2.3047869]
[1645277675655,1.83089,2732.3,2731.4,4.03]
[1645277675853,8.2734923,2732.4,2732.2,2.3047869]
[1645277676057,0.0134923,2732.4,2732.2,2.3047869]
[1645277676452,0.53954543,2733.0,2732.2,2.3047869]
[1645277676653,0.53954543,2733.0,2732.1,0.53]
[1645277676856,7.49,2733.2,2732.9,2.3047869]
[1645277677103,7.49,2733.2,2733.1,2.3047869]